bitfinex-derivatives/quotes_ETHF0:USTF0_20251107
["timestamp","ask_amount","ask_price","bid_price","bid_amount"]
[1762545052766,1.04551648,3437.6,3435.6,0.0659]
[1762545052962,0.61018,3436.8,3436.6,0.47169]
[1762545053161,0.2273,3436.7,3436.6,0.47169]
[1762545053363,0.1385,3436.8,3436.7,0.47168]
[1762545053564,1.04551648,3437.7,3435.6,0.0659]
[1762545053769,1.04551648,3437.8,3435.6,0.0659]
[1762545053972,0.1385,3436.8,3436.7,0.47168]
[1762545055272,0.61017,3436.8,3436.4,0.00436847]
[1762545055569,0.3658,3436.8,3436.7,0.47168]
[1762545056171,0.1385,3436.8,3436.7,0.47168]
[1762545058367,0.61017,3436.8,3436.7,0.47168]
[1762545058562,0.1385,3436.8,3436.4,0.00436847]
[1762545058773,0.2392,3436.6,3436.4,0.00436847]
[1762545059174,0.71091,3436.6,3436.5,0.47171]
[1762545059768,0.00436847,3437.1,3437.0,0.47163]
[1762545059968,2.21229742,3438.6,3437.8,0.1755]
[1762545060170,0.60991,3438.6,3438.4,0.47144]
[1762545060472,0.1388,3438.0,3437.8,0.47152]
[1762545060869,0.1388,3438.0,3436.8,0.0664]
[1762545060870,0.47153,3437.8,3436.8,0.0664]
[1762545061070,0.2392,3437.7,3437.6,0.47153]
[1762545061263,0.71073,3437.7,3437.6,0.47153]
[1762545061465,0.2392,3437.7,3437.6,0.47153]
[1762545061667,0.1388,3437.4,3436.8,0.0033399]
[1762545061867,0.47168,3436.6,3435.3,2.0555298]
[1762545062066,0.1388,3436.8,3435.3,2.0555298]
[1762545062274,0.1388,3437.4,3437.3,0.47159]
[1762545062871,0.1388,3437.4,3435.6,2.1214298]
[1762545063073,0.47159,3437.3,3437.1,0.47161]
[1762545063269,0.4716,3437.2,3437.1,0.47161]
[1762545063468,0.47159,3437.3,3437.2,0.4716]
[1762545063670,0.47163,3437.0,3435.6,0.0659]
[1762545063870,0.1388,3437.4,3435.6,0.0659]
[1762545064177,0.47167,3436.7,3436.6,0.47168]
[1762545064378,0.1388,3436.3,3435.0,2.0555298]
[1762545064577,0.61052,3436.3,3436.2,0.47174]
[1762545064875,0.47178,3436.0,3434.6,3.7315298]
[1762545065077,0.47178,3435.9,3435.6,0.47182]
[1762545065379,0.47185,3435.4,3434.6,1.676]
[1762545065677,0.61063,3435.6,3434.6,1.676]
[1762545065866,0.1388,3435.6,3435.4,0.47185]
[1762545066068,0.00436847,3435.9,3435.3,0.00436847]
[1762545066271,0.61062,3435.6,3435.3,0.47621847]
[1762545066474,0.1388,3435.6,3435.3,0.00436847]
[1762545066678,0.00436847,3435.9,3435.8,0.47179]
[1762545066878,0.00436847,3435.9,3435.5,0.47183]
[1762545067081,0.47181,3435.7,3435.4,0.47185]
[1762545067382,0.1388,3435.6,3435.4,0.47184]
[1762545067781,0.00804712,3435.9,3435.8,0.47179]
[1762545068280,0.00804712,3435.9,3435.7,0.4718]
[1762545068680,0.47181,3435.7,3435.3,0.47622847]
[1762545068878,0.47181,3435.7,3435.5,0.47183]
[1762545069082,0.47982712,3435.9,3435.3,0.00436847]
[1762545069378,0.61063,3435.6,3435.4,0.47184]
[1762545069577,0.1388,3435.6,3435.4,0.47184]
[1762545069779,0.61062,3435.6,3435.3,0.47621847]
[1762545070079,0.1388,3435.6,3435.4,0.47184]
[1762545070583,0.00804712,3435.9,3435.7,0.4718]
[1762545072879,0.00804712,3435.9,3435.8,0.1755]
[1762545073778,0.1388,3437.0,3436.6,0.47168]
[1762545073779,0.47166,3436.8,3436.6,0.47168]
[1762545074001,0.69084869,3436.9,3436.7,0.47167]
[1762545074280,0.61043,3437.0,3436.8,0.47164]
[1762545074487,0.69082981,3436.9,3436.8,0.47164]
[1762545074687,0.69082981,3436.9,3436.6,0.47167]
[1762545074876,0.69082981,3436.8,3436.6,0.47167]
[1762545075184,0.69082981,3436.8,3435.6,0.0579]
[1762545075185,0.47172,3436.4,3435.6,0.0579]
[1762545075388,0.47172,3436.4,3435.3,0.00436847]
[1762545075389,0.61054,3436.2,3435.3,0.00436847]
[1762545075689,0.47175,3436.1,3436.0,0.47175]
[1762545076185,0.47177,3436.0,3435.9,0.47177]
[1762545076382,0.47176,3436.1,3435.3,0.00436847]
[1762545076589,0.1388,3436.2,3436.0,0.47176]
[1762545076888,0.71098,3435.9,3435.3,0.00436847]
[1762545077092,0.47175,3436.1,3436.0,0.47175]
[1762545077583,0.1388,3436.2,3436.1,0.47175]
[1762545077784,0.47606847,3436.5,3436.4,0.47171]
[1762545078181,0.00436847,3436.5,3436.4,0.47171]
[1762545078385,0.47606847,3436.5,3436.4,0.47171]
[1762545079478,0.1388,3436.2,3435.3,0.00436847]
[1762545079684,0.1388,3435.6,3435.5,0.47183]
[1762545079984,0.47179,3435.9,3435.3,0.00436847]
[1762545080383,0.47476898,3435.9,3435.3,0.00436847]
[1762545080584,0.47179,3435.8,3435.7,0.47179]
[1762545080784,0.47182,3435.7,3435.6,0.47182]
[1762545081383,0.61063,3435.6,3435.5,0.47183]
[1762545081595,0.47185,3435.5,3435.4,0.47183]
[1762545081882,0.1388,3435.6,3435.4,0.47183]
[1762545082088,0.1388,3435.6,3435.3,0.00436847]
[1762545082089,0.1388,3435.6,3435.5,0.47183]
[1762545082486,0.00297898,3435.9,3435.8,0.47179]
[1762545083081,0.00297898,3435.9,3435.6,0.47181]
[1762545083284,0.47185,3435.4,3435.3,0.00436847]
[1762545083480,0.71114,3434.7,3434.6,0.00338213]
[1762545083685,0.1388,3435.0,3434.7,0.47194]
[1762545083885,0.1388,3435.0,3434.6,0.00338213]
[1762545083886,0.1388,3435.6,3434.6,0.00338213]
[1762545084089,0.1388,3435.6,3435.1,0.47188]
[1762545084090,0.47188,3435.2,3435.1,0.47188]
[1762545084389,0.1388,3435.0,3434.6,0.00338213]
[1762545084592,0.47192,3434.9,3434.7,0.47194]
[1762545084789,0.47193,3434.8,3434.7,0.47194]
[1762545084984,0.1388,3435.0,3434.9,0.47192]
[1762545085184,0.6107,3435.0,3434.9,0.47192]
[1762545085391,0.1388,3435.0,3434.9,0.47192]
[1762545085596,0.1388,3435.6,3434.6,0.00338213]
[1762545085886,0.1388,3435.6,3435.2,0.47187]
[1762545086096,0.47186,3435.4,3435.3,0.47186]
[1762545086483,0.69120489,3435.5,3435.4,0.47185]
[1762545086679,0.2392,3435.5,3435.1,0.47189]
[1762545086882,0.2452,3435.4,3435.3,0.47186]
[1762545087082,0.47188,3435.2,3435.1,0.47188]
[1762545087787,0.47189,3435.1,3435.0,0.47189]
[1762545087991,0.71708,3435.2,3435.1,0.47187]
[1762545088593,0.1372,3435.0,3434.6,0.00338213]
[1762545088789,0.1372,3435.0,3434.9,0.47192]
[1762545088997,0.47186,3435.4,3435.3,0.47185]
[1762545089188,0.1388,3435.6,3434.6,0.00338213]
[1762545089392,0.47187,3435.3,3435.2,0.47187]
[1762545089694,0.47185,3435.4,3435.3,0.47185]
[1762545090299,0.00297898,3435.9,3435.8,0.47179]
[1762545090689,0.1372,3435.6,3434.6,0.00338213]
[1762545090891,0.00297898,3435.9,3435.8,0.47179]
[1762545091695,0.00297898,3435.9,3435.8,0.64369]
[1762545092494,0.00297898,3435.9,3435.8,0.47179]
[1762545093094,0.00297898,3435.9,3435.8,0.64369]
[1762545094491,0.69639161,3436.5,3436.4,0.47171]
[1762545094689,1.16809161,3436.5,3435.0,2.1134298]
[1762545094888,0.47173,3436.3,3436.2,0.47172]
[1762545095090,0.69202314,3436.4,3436.3,0.47172]
[1762545095295,1.16373314,3436.4,3436.3,0.47172]
[1762545095698,0.69202314,3436.4,3436.3,0.47172]
[1762545095908,1.16373314,3436.4,3436.3,0.47172]
[1762545096097,1.16735022,3436.4,3436.3,0.47172]
[1762545096788,0.69564022,3436.4,3436.3,0.64072]
[1762545096995,0.00436847,3436.5,3436.4,0.64071]
[1762545097401,0.69197047,3437.2,3437.1,0.47161]
[1762545097596,1.04276392,3438.2,3437.6,0.47154]
[1762545097797,1.04276392,3438.2,3436.2,0.0634]
[1762545097798,0.47151,3437.9,3436.2,0.0634]
[1762545098098,0.82879191,3438.0,3437.8,0.47151]
[1762545098498,0.1372,3438.0,3437.8,0.47151]
[1762545098697,0.1372,3438.0,3436.8,0.0477]
[1762545098900,0.47151,3437.9,3437.7,0.47152]
[1762545099292,0.00211386,3437.9,3437.7,0.47412058]
[1762545099704,0.1372,3436.2,3436.0,2.5272898]
[1762545099897,0.47169,3436.6,3436.2,0.47174]
[1762545100200,0.688072,3436.7,3436.2,0.47173]
[1762545100400,0.1372,3436.8,3436.2,0.47173]
[1762545100600,0.1372,3436.8,3434.7,2.0555298]
[1762545100801,0.4717,3436.5,3434.8,2.0555298]
[1762545101001,0.47171,3436.4,3436.3,0.47171]
[1762545101407,0.47175,3436.1,3435.0,0.06104812]
[1762545101598,0.1445,3436.2,3436.0,0.47176]
[1762545101992,0.1445,3436.2,3435.4,0.00436847]
[1762545101993,0.1372,3436.8,3436.3,0.47172]
[1762545102198,0.1372,3436.8,3435.4,0.00436847]
[1762545102394,0.1372,3436.8,3436.6,0.47168]
[1762545102600,0.47168,3436.6,3436.5,0.47169]
[1762545102808,0.71193,3436.3,3436.2,0.47174]
[1762545103107,0.2402,3436.1,3435.8,0.47178]
[1762545103407,0.61624,3436.2,3436.0,0.47176]
[1762545103705,0.2402,3436.1,3436.0,0.47176]
[1762545103901,0.2402,3436.1,3435.4,0.00436847]
[1762545104106,0.4718,3435.8,3435.4,0.00436847]
[1762545104311,0.47181,3435.7,3435.4,0.00436847]
[1762545104499,0.2402,3435.5,3435.4,0.00436847]
[1762545104704,0.47187,3435.3,3435.1,0.47188]
[1762545104904,0.47187,3435.3,3435.0,0.00314812]
[1762545105100,0.1445,3435.6,3435.1,0.47189]
[1762545105313,0.1445,3435.6,3435.0,0.00314812]
[1762545105705,0.47187,3435.3,3435.1,0.47188]
[1762545105906,0.47185,3435.4,3435.0,0.00314812]
[1762545106405,0.1445,3435.6,3435.0,0.00314812]
[1762545106600,0.47186,3435.3,3435.2,0.47187]
[1762545107216,0.47185,3435.5,3435.0,0.00314812]
[1762545107406,0.14757197,3435.6,3435.5,0.47183]
[1762545107902,0.00436847,3436.3,3436.1,0.1724]
[1762545108200,0.00436847,3436.3,3436.2,0.47174]
[1762545108609,0.61624,3436.2,3436.0,0.47176]
[1762545108915,0.1445,3436.2,3435.0,0.00314812]
[1762545109122,0.61632,3435.6,3435.5,0.47183]
[1762545109318,0.1445,3435.6,3435.0,0.00314812]
[1762545109619,0.47185,3435.5,3435.0,0.00314812]
[1762545109818,0.1445,3435.6,3435.0,0.00314812]
[1762545110018,0.47183,3435.5,3435.3,0.47186]
[1762545110324,0.47183,3435.5,3435.4,0.47185]
[1762545110520,0.1445,3435.6,3435.0,0.00314812]
[1762545111023,0.47185,3435.4,3435.0,0.00314812]
[1762545111223,0.1445,3435.6,3435.0,0.00314812]
[1762545111424,0.00229153,3435.4,3435.3,0.47186]
[1762545113118,0.00229153,3435.4,3435.3,0.64426]
[1762545114615,0.61624,3436.2,3436.1,0.47175]
[1762545115218,0.1445,3436.2,3435.0,0.00314812]
[1762545115520,0.71198,3436.0,3435.9,0.47176]
[1762545115720,0.712,3435.8,3435.7,0.47179]
[1762545115918,0.47184,3435.5,3435.4,0.47184]
[1762545116124,0.1445,3435.6,3435.0,0.00314812]
[1762545116125,0.85652,3435.6,3435.5,0.47183]
[1762545116721,0.47185,3435.4,3435.3,0.47185]
[1762545116915,0.14817516,3435.6,3435.5,0.47183]
[1762545117621,0.38777516,3435.6,3435.5,0.47183]
[1762545118223,0.14817516,3435.6,3435.5,0.47183]
[1762545119429,0.61999516,3435.6,3435.5,0.47183]
[1762545119631,0.14817516,3435.6,3435.5,0.47183]
[1762545119831,0.00367516,3435.6,3435.5,0.64133]
[1762545120830,0.00436847,3436.3,3436.2,0.47174]
[1762545121425,0.1372,3436.8,3436.7,0.47167]
[1762545121730,0.47162,3437.1,3437.0,0.47161]
[1762545122133,0.69063411,3437.3,3437.2,0.4716]
[1762545122428,0.1372,3437.4,3437.3,0.47159]
[1762545123423,0.3768,3437.4,3436.2,0.0579]
[1762545123631,0.2396,3437.1,3436.5,0.00436847]
[1762545123836,0.00436847,3437.1,3437.0,0.47163]
[1762545124930,0.00436847,3437.1,3437.0,0.63753]
[1762545125231,0.00436847,3437.1,3437.0,0.47163]
[1762545125532,0.13935008,3437.4,3437.0,0.47163]
[1762545125533,0.00215008,3437.4,3437.3,0.63749]
[1762545125726,0.47143,3438.5,3438.3,0.47144]
[1762545125922,1.16111958,3438.5,3438.3,0.47144]
[1762545126122,0.68968958,3438.5,3438.1,0.47146]
[1762545126326,1.04276392,3439.1,3436.8,0.28809566]
[1762545126630,0.00436847,3438.0,3437.9,0.4715]
[1762545127632,0.00436847,3438.0,3437.9,0.6374]
[1762545128039,0.14936847,3438.0,3437.9,0.4715]
[1762545128841,0.00436847,3438.0,3437.9,0.6374]
[1762545129347,0.47152,3437.8,3436.8,0.00236433]
[1762545129637,0.2396,3437.9,3437.8,0.47151]
[1762545130128,0.14936847,3438.0,3437.9,0.4715]
[1762545130635,0.86045847,3438.0,3437.9,0.4715]
[1762545130935,0.47151,3437.9,3436.8,0.05346433]
[1762545131433,0.14936847,3438.0,3437.9,0.4715]
[1762545131940,0.00436847,3438.0,3437.9,0.6374]
[1762545133223,0.00307491,3438.6,3438.5,0.63732]
[1762545133439,0.14807491,3438.6,3438.5,0.47142]
[1762545134132,0.00307491,3438.6,3438.5,0.63732]
[1762545135237,0.14807491,3438.6,3438.5,0.47142]
[1762545136236,0.47142,3438.5,3438.4,0.47142]
[1762545136427,0.14807491,3438.6,3438.5,0.47142]
[1762545136624,0.00307491,3438.6,3438.5,0.47142]
[1762545136829,0.00307491,3438.6,3438.5,0.63732]
[1762545138229,0.61625,3439.8,3438.8,0.1659]
[1762545138531,0.61625,3439.8,3438.0,0.0548]
[1762545138532,0.145,3439.8,3439.7,0.47126]
[1762545139034,0.145,3439.8,3438.0,0.0548]
[1762545139035,0.67984656,3440.8,3440.3,0.47118]
[1762545139235,0.47115,3440.5,3440.3,0.47118]
[1762545139436,0.14753584,3440.4,3440.3,0.47404795]
[1762545139840,0.00253584,3440.4,3440.3,0.47404795]
[1762545140133,0.47369584,3440.4,3440.3,0.47404795]
[1762545140337,0.61869584,3440.4,3440.3,0.47404795]
[1762545140533,0.85829584,3440.4,3440.3,0.00286795]
[1762545141535,0.38713584,3440.4,3440.3,0.00286795]
[1762545141844,0.38713584,3440.4,3440.3,0.47404795]
[1762545141845,0.61869584,3440.4,3440.3,0.47404795]
[1762545142038,0.14753584,3440.4,3440.3,0.47404795]
[1762545142234,0.00253584,3440.4,3440.3,0.47404795]
[1762545142435,0.6787559,3441.5,3441.4,0.47103]
[1762545142638,1.0,3442.0,3441.8,0.47096]
[1762545143138,1.0,3442.0,3440.4,0.0523]
[1762545143139,1.47095,3442.0,3440.4,0.0523]
[1762545143334,0.47096,3441.9,3441.7,0.47097]
[1762545143535,0.47446756,3441.9,3441.7,0.47097]
[1762545143734,0.00350756,3441.9,3441.7,0.47097]
[1762545143933,0.47446756,3441.9,3441.7,0.47097]
[1762545144134,0.00350756,3441.9,3441.4,0.47102]
[1762545144334,0.47108,3441.0,3440.8,0.4711]
[1762545144638,0.47109,3440.9,3440.7,0.47112]
[1762545144838,0.47109,3440.9,3440.3,0.00286795]
[1762545144839,0.145,3441.2,3440.3,0.00286795]
[1762545145036,0.61615,3440.5,3440.3,0.00286795]
[1762545145239,0.145,3440.5,3440.3,0.00286795]
[1762545145438,0.47116,3440.4,3440.3,0.00286795]
[1762545145739,0.71076,3440.4,3440.3,0.00286795]
[1762545145938,0.71076,3440.4,3440.3,0.47404795]
[1762545146437,0.47109,3440.9,3440.3,0.00286795]
[1762545146638,0.47112,3440.7,3440.6,0.47113]
[1762545146843,0.47116,3440.4,3440.3,0.00286795]
[1762545147745,0.70466,3440.4,3440.3,0.00286795]
[1762545150244,0.70466,3440.4,3440.3,0.47404795]
[1762545150443,0.70466,3440.4,3440.3,0.00286795]
[1762545150637,0.70466,3440.4,3440.0,0.00436135]
[1762545150844,0.7047,3440.1,3440.0,0.00436135]
[1762545151144,0.7047,3440.1,3440.0,0.47558135]
[1762545151737,0.7047,3440.1,3440.0,0.47857317]
[1762545152034,0.7047,3440.1,3440.0,0.00735317]
[1762545152438,0.7047,3440.1,3440.0,0.47857317]
[1762545152843,0.7047,3440.1,3440.0,0.00735317]
[1762545153347,0.8045155,3440.1,3440.0,0.00735317]
[1762545153847,0.70479,3439.5,3439.4,0.47127]
[1762545154047,0.1453,3439.8,3438.6,0.501]
[1762545154249,0.85014,3439.2,3439.1,0.47132]
[1762545154745,0.38127984,3439.2,3439.1,0.00343717]
[1762545154945,0.38127984,3439.2,3437.3,0.937]
[1762545154946,0.1453,3438.6,3437.3,0.937]
[1762545155247,0.1453,3438.0,3436.6,0.22843169]
[1762545155441,0.47152,3437.8,3437.7,0.47153]
[1762545155640,0.47154,3437.7,3437.5,0.47155]
[1762545156151,0.2335,3437.6,3437.5,0.0037172]
[1762545156442,0.47587135,3437.9,3437.7,0.47153]
[1762545156638,0.70505,3437.6,3437.5,0.0037172]
[1762545156838,0.00436135,3437.9,3437.5,0.0037172]
[1762545157039,0.47153,3437.7,3437.5,0.0037172]
[1762545157441,0.47154,3437.7,3437.5,0.0037172]
[1762545158144,0.00436135,3437.9,3437.7,0.47152]
[1762545159245,0.00436135,3437.9,3437.7,0.47153]
[1762545159246,0.2335,3437.8,3437.7,0.47153]
[1762545159446,0.61683,3437.7,3437.5,0.4752772]
[1762545159648,0.1453,3437.7,3437.5,0.4752772]
[1762545159854,0.61684,3437.7,3437.5,0.4752772]
[1762545160049,0.2335,3437.6,3437.5,0.0037172]
[1762545160347,0.61683,3437.7,3437.5,0.0037172]
[1762545160548,0.2335,3437.6,3437.5,0.0037172]
[1762545160741,0.70505,3437.6,3437.5,0.0037172]
[1762545161149,0.2335,3437.6,3437.5,0.4752772]
[1762545161348,0.1453,3437.7,3437.5,0.0037172]
[1762545161858,0.47155,3437.6,3437.5,0.0037172]
[1762545162045,0.70555,3437.6,3437.5,0.0037172]
[1762545162349,0.70555,3437.6,3437.5,0.4752772]
[1762545162552,0.70555,3437.6,3437.5,0.0037172]
[1762545164049,0.1377,3436.8,3436.7,0.47166]
[1762545165147,0.47159,3437.3,3437.1,0.4716]
[1762545165546,0.234,3437.2,3437.1,0.4716]
[1762545165744,0.47162,3437.1,3436.9,0.47163]
[1762545166051,0.234,3437.2,3437.1,0.47161]
[1762545166251,0.3793,3437.7,3437.6,0.47155]
[1762545166451,0.1453,3437.7,3437.6,0.47155]
[1762545167451,0.00436135,3437.9,3437.8,0.47152]
[1762545167750,0.70986135,3437.9,3437.8,0.47152]
[1762545168154,0.00436135,3437.9,3436.7,0.00352417]
[1762545168357,0.70556,3437.6,3437.5,0.47155]
[1762545168647,0.234,3437.6,3437.5,0.47155]
[1762545168852,0.00436135,3437.9,3437.8,0.47152]
[1762545169946,0.00436135,3437.9,3437.8,0.64932]
[1762545170147,0.1453,3438.6,3438.5,0.47142]
[1762545170342,0.00247984,3439.2,3439.1,0.64484]
[1762545170751,0.14017984,3439.2,3439.1,0.47134]
[1762545171055,0.234,3438.9,3438.8,0.47138]
[1762545171243,0.82511403,3438.9,3438.8,0.47138]
[1762545171560,0.59111403,3438.9,3438.8,0.47138]
[1762545174855,0.82511403,3438.9,3438.8,0.47138]
[1762545175059,0.59111403,3438.9,3438.8,0.47138]
[1762545175657,0.59111403,3438.9,3438.7,0.47139]
[1762545175962,0.1377,3438.6,3438.5,0.47578135]
[1762545176262,0.96281403,3438.6,3438.5,0.47578135]
[1762545176555,0.59111403,3438.6,3438.5,0.64858135]
[1762545178162,0.73961403,3438.6,3438.5,0.47578135]
[1762545178363,1.44432403,3438.6,3438.5,0.47578135]
[1762545178659,0.97291403,3438.6,3438.5,0.47578135]
[1762545178860,0.73961403,3438.6,3438.5,0.47578135]
[1762545180461,0.59111403,3438.6,3438.5,0.64858135]
[1762545180658,0.59111403,3438.6,3438.5,14.46538135]
[1762545180862,0.15534119,3439.2,3439.1,0.47134]
[1762545181059,0.00436135,3439.2,3439.1,0.47134]
[1762545181260,0.1377,3439.8,3439.1,0.47134]
[1762545181261,0.1377,3439.8,3439.7,0.47126]
[1762545181461,0.1377,3440.4,3440.3,0.47118]
[1762545181760,0.1485,3441.0,3439.6,0.23148367]
[1762545181954,0.1485,3441.0,3440.9,0.47109]
[1762545182257,0.15058667,3441.0,3440.9,0.47331588]
[1762545182661,0.00208667,3441.0,3440.9,0.47331588]
[1762545183460,0.1485,3441.6,3440.9,8.00222588]
[1762545183661,1.0,3442.0,3441.9,0.47096]
[1762545184658,1.00245543,3442.0,3441.9,0.47096]
[1762545184858,1.00245543,3442.0,3441.8,0.47096]
[1762545185054,0.2333,3441.9,3441.8,0.47096]
[1762545185460,0.2333,3441.9,3440.9,8.00222588]
[1762545185653,0.2333,3441.7,3441.6,0.47099]
[1762545186054,0.1485,3441.2,3441.0,0.47108]
[1762545186560,1.47340543,3442.0,3440.9,0.00222588]
[1762545186761,1.47340543,3442.0,3441.8,0.47096]
[1762545186964,1.00245543,3442.0,3440.9,0.00222588]
[1762545187162,0.47096,3441.9,3440.9,0.00222588]
[1762545187661,0.47099,3441.7,3441.3,0.47103]
[1762545187864,0.2333,3441.4,3440.9,0.00222588]
[1762545188060,0.1485,3441.0,3440.9,0.00222588]
[1762545188258,0.1485,3441.0,3440.9,0.47331588]
[1762545188662,0.1485,3441.6,3441.5,0.47101]
[1762545188971,0.1485,3441.0,3440.9,0.47331588]
[1762545189369,0.3818,3441.0,3440.9,0.00222588]
[1762545190565,0.1485,3440.4,3440.2,0.47119]
[1762545191263,0.1485,3441.0,3440.9,0.47109]
[1762545191473,0.47119,3440.3,3439.3,10.47]
[1762545191668,0.1485,3440.4,3439.3,10.47]
[1762545191669,0.61966,3440.4,3440.3,0.47118]
[1762545191865,0.3818,3440.4,3440.3,0.47118]
[1762545192367,0.3818,3440.4,3439.5,0.00436135]
[1762545192671,0.3818,3440.4,3440.3,0.47118]
[1762545193064,0.1485,3440.4,3440.3,0.47118]
[1762545194169,0.85296,3440.4,3440.3,0.47118]
[1762545194363,0.1485,3440.4,3440.3,0.47118]
[1762545194963,0.1485,3439.8,3439.7,0.47126]
[1762545195273,0.1485,3440.4,3440.3,0.47118]
[1762545195462,0.85296,3440.4,3440.3,0.47118]
[1762545195669,0.3818,3440.4,3440.3,0.47118]
[1762545196366,0.3818,3440.4,3439.5,0.00436135]
[1762545196570,0.70448,3440.3,3440.2,0.47118]
[1762545196875,0.2333,3440.3,3440.2,0.47118]
[1762545197263,0.1485,3440.4,3440.3,0.47118]
[1762545197465,0.61966,3440.4,3440.3,0.47118]
[1762545197771,0.1485,3439.8,3439.7,0.47126]
[1762545198377,0.1485,3440.4,3440.3,0.47118]
[1762545199075,0.3818,3440.4,3440.3,0.47118]
[1762545199274,0.3818,3440.4,3439.7,0.47126]
[1762545199275,0.1485,3439.8,3439.7,0.47126]
[1762545199479,0.85304,3439.8,3439.7,0.47126]
[1762545199672,0.3818,3439.8,3439.7,0.47126]
[1762545199881,0.1485,3439.8,3439.7,0.47126]
[1762545200270,0.3818,3439.8,3439.7,0.47126]
[1762545202278,0.1485,3439.8,3439.6,0.47126]
[1762545202468,0.2333,3439.7,3439.6,0.47126]
[1762545203782,0.1485,3439.8,3439.7,0.47126]
[1762545203973,0.1485,3440.4,3440.3,0.47118]
[1762545204676,0.1485,3441.0,3440.9,0.47109]
[1762545204976,0.1485,3441.6,3441.2,0.47105]
[1762545215383,0.1485,3441.6,3439.4,6.328]
[1762545215384,0.85488,3441.0,3440.9,0.47108]
[1762545215684,0.2338,3440.9,3440.8,0.47109]
[1762545215887,0.70489,3440.9,3440.8,0.47109]
[1762545216988,0.70495,3440.5,3440.4,0.47115]
[1762545217183,0.2338,3440.5,3440.4,0.47115]
[1762545217387,0.15,3441.0,3440.6,0.47112]
[1762545217586,0.2338,3440.7,3440.6,0.47112]
[1762545218587,0.15,3441.0,3440.9,0.47109]
[1762545218789,0.95509702,3441.0,3440.9,0.47109]
[1762545218985,1.6438709,3441.0,3440.9,0.47109]
[1762545219492,0.2338,3440.8,3439.6,0.448]
[1762545219695,0.70492,3440.8,3440.7,0.47112]
[1762545219882,0.92257388,3440.8,3440.7,0.47112]
[1762545220086,0.2338,3440.8,3440.7,0.47112]
[1762545220286,0.92257388,3440.8,3440.7,0.47112]
[1762545220483,0.68877388,3440.8,3440.7,0.47112]
[1762545220687,1.16254127,3440.9,3440.8,0.47111]
[1762545220887,0.70561,3440.8,3440.7,0.47112]
[1762545221195,0.70562,3440.7,3440.6,0.47113]
[1762545221385,1.39706127,3440.7,3440.6,0.47113]
[1762545221991,0.92594127,3440.7,3440.6,0.47113]
[1762545222292,0.2345,3440.7,3440.6,0.47113]
[1762545222691,0.1377,3440.4,3439.6,0.448]
[1762545222996,0.2345,3439.7,3439.6,0.47127]
[1762545224793,0.70577,3439.6,3439.3,0.00206645]
[1762545224997,0.2345,3439.6,3439.5,0.47564135]
[1762545225293,0.47126,3439.7,3439.6,0.47126]
[1762545225484,0.2345,3439.7,3439.6,0.47126]
[1762545226088,0.1377,3439.8,3439.7,0.47126]
[1762545230396,0.1377,3440.4,3440.1,0.4712]
[1762545230397,0.47119,3440.2,3440.1,0.4712]
[1762545230893,0.70568,3440.3,3440.2,0.47118]
[1762545231595,0.1377,3440.0,3439.5,0.00436135]
[1762545231998,0.1377,3440.0,3439.9,0.47123]
[1762545234819,0.1377,3440.4,3439.5,0.00436135]
[1762545234820,0.1377,3440.4,3440.3,0.47118]
[1762545235912,0.15,3441.0,3440.9,0.47109]
[1762545236106,0.3845,3441.0,3440.9,0.47109]
[1762545236505,0.15,3441.0,3440.9,0.47109]
[1762545237315,0.00436135,3441.3,3441.2,0.47105]
[1762545237613,0.242,3441.1,3441.0,0.47107]
[1762545238710,0.84838,3441.0,3440.9,0.47109]
[1762545239512,0.7131,3440.9,3440.8,0.47111]
[1762545239707,0.242,3440.9,3440.8,0.47111]
[1762545240314,0.47109,3440.9,3440.8,0.47111]
[1762545240616,0.84838,3441.0,3440.9,0.47109]
[1762545241410,0.3773,3441.0,3440.9,0.47109]
[1762545241812,0.1353,3441.0,3440.9,0.47109]
[1762545242415,0.00436135,3441.3,3441.2,0.47105]
[1762545243617,1.14015543,3442.0,3441.9,0.47096]
[1762545243912,1.14015543,3442.0,3441.9,0.47390214]
[1762545245005,1.38215543,3442.0,3441.9,0.00294214]
[1762545245302,0.3773,3441.5,3441.4,0.47101]
[1762545246227,0.1353,3441.5,3441.4,0.47437564]
[1762545247310,0.3773,3441.5,3441.4,0.00336564]
[1762545247515,0.84831,3441.5,3441.4,0.00336564]
[1762545247708,0.3773,3441.5,3441.4,0.47439564]
[1762545248416,0.1353,3441.5,3441.4,0.47439564]
[1762545251116,0.00436135,3441.8,3441.7,0.47098]
[1762545255316,0.24636135,3441.8,3441.7,0.47098]
[1762545255522,0.00436135,3441.8,3441.7,0.47098]
[1762545256025,0.71733135,3441.8,3441.7,0.47098]
[1762545256321,0.24636135,3441.8,3441.7,0.47098]
[1762545262118,0.00436135,3441.8,3441.7,0.47098]
[1762545267022,0.24636135,3441.8,3441.7,0.47098]
[1762545267632,0.71733135,3441.8,3441.7,0.47098]
[1762545268032,0.71733135,3441.8,3441.4,0.00336564]
[1762545268033,0.3723,3441.5,3441.4,0.00336564]
[1762545268323,0.69795,3441.2,3441.1,0.00436135]
[1762545268523,0.69795,3441.2,3440.6,0.954]
[1762545268524,0.2269,3440.7,3440.6,1.42514]
[1762545268727,0.2269,3440.7,3440.6,0.47114]
[1762545268926,0.1454,3440.0,3439.9,0.47123]
[1762545269327,0.3723,3440.0,3439.9,0.47123]
[1762545269531,0.3723,3440.0,3439.9,0.47481646]
[1762545270630,0.1454,3440.0,3439.9,0.47481646]
[1762545270835,0.1454,3440.5,3440.4,0.47116]
[1762545272538,0.3723,3440.5,3440.4,0.47116]
[1762545273129,0.3723,3440.5,3439.9,0.00358646]
[1762545273437,0.1454,3440.0,3439.9,0.47481646]
[1762545276330,0.3723,3440.0,3439.9,0.47481646]
[1762545277739,0.1454,3440.0,3439.9,0.47481646]
[1762545280641,0.3723,3440.0,3439.9,0.47481646]